fUST/lending_fUST_20240121
["ID","MTS","AMOUNT","RATE_DAILY","PERIOD"]
[312377565,1705845057094,-500.0,0.00029863,2]
[312377566,1705845057102,-500.0,0.00029863,2]
[312377567,1705845057112,-656.66,0.00029863,2]
[312377568,1705845057120,-958.38,0.00029863,2]
[312377569,1705845057129,-540.95,0.00029863,2]
[312377570,1705845057138,-1300.84,0.00029863,2]
[312377571,1705845057148,-562.37,0.00029863,2]
[312377572,1705845057157,-1132.91,0.00029863,2]
[312377573,1705845057166,-500.0,0.00029863,2]
[312377574,1705845057175,-2490.9,0.00029863,2]
[312377575,1705845057184,-500.0,0.00029863,2]
[312377576,1705845057194,-14451.48,0.00029863,2]
[312377577,1705845057203,-646.98,0.00029863,2]
[312377578,1705845057212,-500.0,0.00029863,2]
[312377579,1705845057222,-8985.4,0.00029863,2]
[312377580,1705845057231,-500.0,0.00029863,2]
[312377581,1705845057239,-8616.53,0.00029863,2]
[312377582,1705845057248,-3009.28,0.00029863,2]
[312377583,1705845057258,-1991.31,0.00029863,2]
[312377584,1705845057266,-1212.07,0.00029863,2]
[312377585,1705845057275,-527.61,0.00029863,2]
[312377586,1705845057284,-606.58,0.00029863,2]
[312377587,1705845057293,-1188.66,0.00029863,2]
[312377588,1705845057303,-1385.6,0.00029863,2]
[312377589,1705845057312,-2116.25,0.00029863,2]
[312377590,1705845057321,-4039.22,0.00029863,2]
[312377591,1705845057330,-500.0,0.00029863,2]
[312377592,1705845057339,-500.0,0.00029863,2]
[312377593,1705845057348,-500.0,0.00029863,2]
[312377594,1705845057356,-500.0,0.00029863,2]
[312377595,1705845057366,-992.85,0.00029863,2]
[312377596,1705845057375,-1249.83,0.00029863,2]
[312377597,1705845057384,-500.0,0.00029863,2]
[312377598,1705845057393,-500.0,0.00029863,2]
[312377599,1705845057402,-1508.03,0.00029863,2]
[312377600,1705845057411,-500.0,0.00029863,2]
[312377601,1705845057420,-1368.09,0.00029863,2]
[312377602,1705845057430,-524.75,0.00029863,2]
[312377603,1705845057439,-500.0,0.00029863,2]
[312377604,1705845057447,-5986.27,0.00029863,2]
[312377605,1705845057457,-500.0,0.00029863,2]
[312377606,1705845057466,-689.74,0.00029863,2]
[312377607,1705845057475,-5000.0,0.00029863,2]
[312377608,1705845057487,-154.7215013,0.0003,4]
[312377609,1705845057496,-509.33037223,0.0003,3]
[312377610,1705845057505,-9915.36380901,0.0003,4]
[312377611,1705845057514,-244.10022188,0.0003,4]
[312377612,1705845057524,-154.7215013,0.0003,2]
[312377613,1705845057533,-464.55162265,0.0003,2]
[312377614,1705845057542,-154.7215013,0.0003,4]
[312377615,1705845057551,-2370.80719439,0.0003,2]
[312377616,1705845057561,-41563.27289514,0.0003,2]
[312377617,1705845057699,-962.94661293,0.0003,2]
[312377618,1705845057708,-12582.47887423,0.0003,2]
[312377619,1705845057719,-583.54336383,0.0003,2]
[312377620,1705845057731,-317.3207526,0.0003,2]
[312377621,1705845058047,-166.64146166,0.00017234,2]
[312377622,1705845058058,-301.87306953,0.00017234,2]
[312377623,1705845058067,-154.73694719,0.00017234,2]
[312377624,1705845058077,-4364.44852162,0.00017234,2]
[312377625,1705845058088,-448.55786504,0.00017234,2]
[312377626,1705845058097,-236.69213571,0.00017234,2]
[312377627,1705845058184,-307.71364118,0.00017234,2]
[312377628,1705845058196,-1267.01192796,0.00017234,2]
[312377629,1705845058205,-154.73694719,0.00017234,2]
[312377630,1705845058214,-874.18725797,0.00017235,2]
[312377631,1705845058224,-303.11553415,0.00017237,2]
[312377632,1705845058234,-155.24881877,0.000174,2]
[312377633,1705845058243,-200.88040574,0.000174,2]
[312377634,1705845058252,-500.0,0.00027296,2]
[312377635,1705845058262,-178.3843502,0.00027296,2]
[312377636,1705845058271,-424.25197522,0.00027296,2]
[312377637,1705845058282,-75.74802478,0.00027296,2]
[312377638,1705845058291,-472.9427714,0.00028493,2]
[312377639,1705845058302,-27.0572286,0.00028493,2]
[312377640,1705845058312,-500.0,0.00028767,2]
[312377641,1705845058321,-500.0,0.00029041,2]
[312377642,1705845058330,-1074.45,0.00029315,2]
[312377643,1705845058339,-500.0,0.00029315,2]
[312377644,1705845058348,-1074.45,0.00029589,2]
[312377645,1705845058357,-500.0,0.00029589,2]
[312377646,1705845058366,-1074.45,0.00029863,2]
[312377647,1705845058375,-371.71152567,0.00029863,2]
[312377648,1705845058385,-1041.01902235,0.0003,2]
[312377649,1705845058397,-3606.27720025,0.0003,2]
[312377650,1705845058408,-2890.32584,0.0003,2]
[312377651,1705845058615,-243.07986373,0.00017234,2]
[312377652,1705845058624,-155.2765544,0.00017234,2]
[312377653,1705845058633,-155.25593435,0.00017234,2]
[312377654,1705845058642,-620.06102847,0.00017238,2]
[312377655,1705845058651,-155.13799593,0.00017238,2]
[312377656,1705845058661,-156.78038865,0.0002,2]
[312377657,1705845058670,-500.0,0.00027397,2]
[312377658,1705845058680,-733.72402193,0.0003,2]
[312377659,1705845058692,-415.37704672,0.0003,2]
[312377660,1705845058701,-4538.78595328,0.0003,2]
[312377661,1705845058726,-1657.93183173,0.0003,2]
[312377662,1705845058736,-4550.41806035,0.0003,3]
[312377663,1705845059174,-555.24243185,0.00017234,2]
[312377664,1705845059184,-711.64153599,0.00017234,2]
[312377665,1705845059193,-470.5887913,0.00017234,2]
[312377666,1705845059203,-282.63143783,0.00017234,2]
[312377667,1705845059212,-155.11385417,0.00017234,2]
[312377668,1705845059222,-2034.18918627,0.00017234,2]
[312377669,1705845059232,-2073.50516209,0.00017234,2]
[312377670,1705845059242,-928.50182034,0.00017238,2]
[312377671,1705845059254,-181.01634453,0.00017238,2]
[312377672,1705845059263,-175.18966106,0.00027396,2]
[312377673,1705845059273,-500.0,0.00027397,2]
[312377674,1705845059282,-5805.96369567,0.00027661,3]
[312377677,1705845097395,24900.0,0.00016236,2]
[312377681,1705845143604,144946.65826526,0.00016236,2]
[312377682,1705845149317,-1811.41770485,0.00017125,2]
[312377683,1705845149338,-243.07986373,0.00017125,2]
[312377684,1705845149358,-166.64146166,0.00017125,2]
[312377685,1705845149377,-2034.18918627,0.00017125,2]
[312377686,1705845149398,-711.64153599,0.00017126,2]
[312377687,1705845149418,-4813.00638666,0.00017126,2]
[312377688,1705845149438,-555.24243185,0.00017126,2]
[312377689,1705845149457,-154.73694719,0.00017126,2]
[312377690,1705845149477,-301.87306953,0.00017127,2]
[312377691,1705845149497,-178.88598493,0.00017127,2]
[312377692,1705845149517,-272.51041395,0.00017127,2]
[312377693,1705845149541,-154.73694719,0.00017127,2]
[312377694,1705845149561,-156.9264307,0.00017127,2]
[312377695,1705845149581,-178.72553663,0.00017128,2]
[312377696,1705845149601,-260.82481648,0.00017128,2]
[312377697,1705845149621,-1589.80949829,0.00017128,2]
[312377698,1705845149642,-18901.14352222,0.00017128,2]
[312377699,1705845149662,-679.97177576,0.00017128,2]
[312377700,1705845149682,-1242.31465176,0.00017128,2]
[312377701,1705845149702,-595.02587032,0.00017128,2]
[312377702,1705845149722,-154.73694719,0.00017128,2]
[312377703,1705845149742,-876.22858684,0.00017128,2]
[312377704,1705845149762,-1602.84826341,0.00017128,2]
[312377705,1705845149782,-19697.53585665,0.00017128,2]
[312377706,1705845149802,-154.73694719,0.00017129,2]
[312377707,1705845149823,-170.87637718,0.00017129,2]
[312377708,1705845149844,-1468.41470444,0.00017129,2]
[312377709,1705845149863,-211.49658438,0.00017129,2]
[312377710,1705845149884,-154.73694719,0.00017129,2]
[312377711,1705845149904,-154.73694719,0.00017129,2]
[312377712,1705845149926,-154.73694719,0.00017129,3]
[312377713,1705845149946,-3745.3390844,0.00017129,2]
[312377714,1705845149967,-309.38122828,0.00017129,2]
[312377715,1705845149987,-588.23188464,0.00017129,2]
[312377716,1705845150008,-154.73694719,0.00017129,2]
[312377717,1705845150029,-561.53264515,0.00017129,2]
[312377718,1705845150049,-154.73694719,0.00017129,2]
[312377719,1705845150070,-154.73694719,0.00017129,2]
[312377720,1705845150091,-2038.68616841,0.00017129,2]
[312377721,1705845150111,-154.73694719,0.00017129,2]
[312377722,1705845150131,-13717.4313798,0.00017129,2]
[312377723,1705845150153,-1253.15755419,0.00017129,2]
[312377724,1705845150173,-7956.19039627,0.00017129,2]
[312377725,1705845150193,-616.63420581,0.0001713,2]
[312377726,1705845150214,-261.08742669,0.0001713,2]
[312377727,1705845150234,-644.2750614,0.0001713,2]
[312377728,1705845150254,-213.3962609,0.0001713,2]
[312377729,1705845150274,-265.43031538,0.0001713,2]
[312377730,1705845150294,-526.64913826,0.0001713,2]
[312377731,1705845150314,-1293.51070224,0.0001713,2]
[312377732,1705845150334,-2814.61840706,0.0001713,2]
[312377733,1705845150501,-1993.11428292,0.0001713,2]
[312377734,1705845150525,-19863.4413156,0.0001713,2]
[312377735,1705845150545,-163.09864906,0.0001713,2]
[312377736,1705845150566,-1579.05681645,0.00017131,2]
[312377737,1705845150587,-154.73694719,0.00017131,2]
[312377738,1705845150608,-8687.26319633,0.00017131,2]
[312377739,1705845162044,1470.54830513,0.00012847,2]
[312377740,1705845162216,1216.85681556,0.0001713,5]
[312377741,1705845163843,682.29779934,0.00016236,2]
[312377742,1705845165490,154.73694719,0.00015416,2]
[312377743,1705845171643,-262.2850779,0.00017122,2]
[312377744,1705845171666,-2737.7149221,0.00017122,2]
[312377745,1705845174796,267.16265354,0.00014612,2]
[312377753,1705845183828,519.23504288,0.00016236,2]
[312377754,1705845189495,154.73694719,0.00015409,2]
[312377755,1705845209501,154.73694719,0.00015408,2]
[312377756,1705845227312,-555.24243185,0.00017019,2]
[312377757,1705845227332,-272.51041395,0.00017019,2]
[312377758,1705845227352,-1579.05681645,0.00017019,2]
[312377759,1705845227372,-16427.19033775,0.00017019,2]
[312377760,1705845231523,154.73694719,0.00015408,2]
[312377761,1705845249510,154.73694719,0.00015315,2]
[312377763,1705845269505,154.73694719,0.00015313,2]
[312377764,1705845291506,154.73694719,0.00015313,2]
[312377766,1705845303102,-154.88935421,0.0001701,2]
[312377767,1705845303125,-7056.11064579,0.0001701,2]
[312377768,1705845305509,154.73694719,0.0001531,2]
[312377769,1705845308114,260.71552206,0.00017011,7]
[312377770,1705845309078,192.22621948,0.00016911,2]
[312377772,1705845321531,154.73694719,0.00015309,2]
[312377773,1705845323279,1210.37622403,0.00015313,2]
[312377774,1705845341522,154.73694719,0.00015308,2]
[312377775,1705845356921,184.3161743,0.00016008,2]
[312377776,1705845359521,154.73694719,0.00015303,2]
[312377777,1705845381521,154.73694719,0.00015301,2]
[312377778,1705845387550,1740.68284208,0.00017,2]
[312377779,1705845392039,8760.12309796,0.00017,2]
[312377780,1705845392159,644.2750614,0.00017,2]
[312377781,1705845392944,616.63420581,0.00017,2]
[312377782,1705845395110,19697.53585665,0.00017,2]
[312377783,1705845396325,679.97177576,0.00017,2]
[312377784,1705845396746,1242.31465176,0.00017,2]
[312377785,1705845398262,2034.18918627,0.00017,2]
[312377786,1705845398927,154.73694719,0.00017,2]
[312377787,1705845399297,36958.2042176,0.00017,2]
[312377788,1705845399371,213.3962609,0.00017,2]
[312377789,1705845399572,2814.61840706,0.00017,2]
[312377790,1705845400124,526.64913826,0.00017,2]
[312377791,1705845401112,154.73694719,0.00017,2]
[312377792,1705845401320,1993.11428292,0.00017,2]
[312377793,1705845403527,154.73694719,0.000153,2]
[312377794,1705845403559,1740.68284208,0.00017,2]
[312377795,1705845403661,166.64146166,0.00017,2]
[312377796,1705845404137,1293.51070224,0.00017,2]
[312377797,1705845405190,19863.4413156,0.00017,2]
[312377798,1705845405469,170.87637718,0.00017,2]
[312377799,1705845405874,191.37607433,0.00017,2]
[312377800,1705845406131,4813.00638666,0.00017,2]
[312377801,1705845406511,1811.41770485,0.00017,2]
[312377802,1705845406691,1602.84826341,0.00017,2]
[312377803,1705845406719,178.88598493,0.00017,2]
[312377804,1705845407099,616.63420581,0.00017,2]
[312377805,1705845408184,645.04641078,0.00017,2]
[312377806,1705845408479,20898.36993383,0.00017,2]
[312377807,1705845408618,18901.14352222,0.00017,2]
[312377808,1705845409129,711.64153599,0.00017,2]
[312377809,1705845409467,15017.10042654,0.00017,2]
[312377810,1705845409994,154.73694719,0.00017,2]
[312377811,1705845410023,595.02587032,0.00017,2]
[312377812,1705845410056,1368.54692893,0.00017,2]
[312377813,1705845410305,679.97177576,0.00017,2]
[312377814,1705845410545,211.49658438,0.00017,2]
[312377815,1705845411060,261.08742669,0.00017,2]
[312377816,1705845411138,254.06143163,0.00017,2]
[312377817,1705845412736,1242.31465176,0.00017,2]
[312377818,1705845412763,3485.08832391,0.00017,2]
[312377819,1705845414008,154.73694719,0.00017,2]
[312377820,1705845414081,526.64913826,0.00017,2]
[312377821,1705845414194,687.82278777,0.00017,2]
[312377822,1705845415287,36958.2042176,0.00017,2]
[312377823,1705845415410,214.40641781,0.00017,2]
[312377824,1705845415596,2387.23146034,0.00017,2]
[312377825,1705845416264,2034.18918627,0.00017,2]
[312377826,1705845416292,876.22858684,0.00017,2]
[312377827,1705845416911,268.74291864,0.00017,2]
[312377828,1705845417110,155.88817566,0.00017,2]
[312377829,1705845417332,1992.87766821,0.00017,2]
[312377830,1705845419042,163.09864906,0.00017,2]
[312377831,1705845419653,166.64146166,0.00017,2]
[312377832,1705845420119,1293.51070224,0.00017,2]
[312377833,1705845420404,1811.41770485,0.00017,2]
[312377834,1705845420675,214.37203923,0.00017,2]
[312377835,1705845420978,555.24243185,0.00017,2]
[312377836,1705845421177,19863.4413156,0.00017,2]
[312377837,1705845421456,170.87637718,0.00017,2]
[312377838,1705845421548,1836.61926611,0.00017,2]
[312377839,1705845422477,20898.36993383,0.00017,2]
[312377840,1705845422696,1602.84826341,0.00017,2]
[312377841,1705845422963,236.60316927,0.00017,2]
[312377842,1705845423794,1589.80949829,0.00017,2]
[312377843,1705845423988,154.73694719,0.00017,2]
[312377844,1705845424021,3528.51395801,0.00017,2]
[312377845,1705845424398,154.73694719,0.00017,2]
[312377846,1705845424504,211.49658438,0.00017,2]
[312377847,1705845424613,6013.382167,0.00017,2]
[312377848,1705845425129,254.06143163,0.00017,2]
[312377849,1705845425159,711.64153599,0.00017,2]
[312377850,1705845425627,2102.8255171,0.00016028,2]
[312377851,1705845425883,191.37607433,0.00017,2]
[312377852,1705845425910,3745.3390844,0.00017,2]
[312377853,1705845426218,687.82278777,0.00017,2]
[312377854,1705845426739,20870.64149972,0.00017,2]
[312377855,1705845427066,261.08742669,0.00017,2]
[312377856,1705845427140,272.51041395,0.00017,2]
[312377857,1705845427305,154.73694719,0.00017,2]
[312377858,1705845427522,154.73694719,0.000153,2]
[312377859,1705845428004,595.91741395,0.00017,2]
[312377860,1705845428211,679.97177576,0.00017,2]
[312377861,1705845430046,8760.12309796,0.00017,2]
[312377862,1705845430292,876.22858684,0.00017,2]
[312377863,1705845430662,1696.365997,0.00017,2]
[312377864,1705845430747,3485.08832391,0.0001666,2]
[312377865,1705845430774,588.23188464,0.00017,2]
[312377866,1705845431208,1579.05681645,0.00017,2]
[312377867,1705845432509,157.56552514,0.00017,2]
[312377868,1705845432738,1242.31465176,0.00017,2]
[312377869,1705845434090,526.58372141,0.00017,2]
[312377870,1705845435281,36958.2042176,0.00017,2]
[312377871,1705845435560,163.09864906,0.00017,2]
[312377872,1705845436119,1293.51070224,0.00017,2]
[312377873,1705845436260,878.42831675,0.00017,2]
[312377874,1705845436984,555.24243185,0.00017,2]
[312377875,1705845437453,170.87637718,0.00017,2]
[312377877,1705845439641,264.28498671,0.00017,2]
[312377878,1705845439800,1589.80949829,0.00017,2]
[312377879,1705845440419,1811.41770485,0.00017,2]
[312377880,1705845441139,711.64153599,0.00017,2]
[312377881,1705845441168,254.02996633,0.00017,2]
[312377882,1705845441196,272.69317989,0.00017,2]
[312377883,1705845441224,9992.68743926,0.00017,2]
[312377884,1705845441699,15217.05988375,0.00017,2]
[312377885,1705845441875,229.04400335,0.00017,2]
[312377886,1705845441908,3745.3390844,0.00017,2]
[312377887,1705845442480,5205.07660284,0.00017,2]
[312377888,1705845442579,20870.64149972,0.00017,2]
[312377889,1705845442755,663.80781284,0.00017,2]
[312377890,1705845444513,211.49658438,0.00017,2]
[312377891,1705845444684,1602.84826341,0.00017,2]
[312377892,1705845445059,261.08742669,0.00017,2]
[312377893,1705845445305,154.73694719,0.00017,2]
[312377894,1705845445541,154.73694719,0.000153,2]
[312377895,1705845446001,154.73694719,0.00017,2]
[312377896,1705845446220,183.24113675,0.00017,2]
[312377897,1705845446294,876.22858684,0.00017,2]
[312377898,1705845446423,157.22563364,0.00017,2]
[312377899,1705845447203,447.49664725,0.00017,2]
[312377900,1705845448744,761.72192744,0.0001666,2]
[312377901,1705845450662,537.57415655,0.00017,2]
[312377902,1705845450737,1242.26025778,0.00017,2]
[312377903,1705845452208,679.97177576,0.00017,2]
[312377904,1705845452977,555.24243185,0.00017,2]
[312377905,1705845453299,36958.2042176,0.00017,2]
[312377906,1705845454126,1293.51070224,0.00017,2]
[312377907,1705845455456,171.10185588,0.00017,2]
[312377908,1705845457304,3129.43626556,0.00016999,2]
[312377909,1705845458728,12445.20485922,0.00017,2]
[312377910,1705845459550,164.48751283,0.00017,2]
[312377911,1705845459702,15217.05988375,0.00017,2]
[312377912,1705845461064,330.31375608,0.00017,2]
[312377913,1705845461804,1595.62838889,0.00017,2]
[312377914,1705845461957,3745.3390844,0.00017,2]
[312377915,1705845462434,1811.41770485,0.00017,2]
[312377916,1705845462705,1602.84826341,0.00017,2]
[312377917,1705845463307,198.18048867,0.00017,2]
[312377918,1705845464238,653.45159907,0.00017,2]
[312377919,1705845464301,666.79707174,0.00017,2]
[312377920,1705845465995,156.69796618,0.00017,2]
[312377921,1705845467525,154.73694719,0.000153,2]
[312377922,1705845468519,193.23716604,0.00017,2]
[312377923,1705845469289,36958.2042176,0.00017,2]
[312377924,1705845470223,679.97177576,0.00017,2]
[312377925,1705845470980,555.52090664,0.00017,2]
[312377926,1705845476129,259.31490284,0.00017,2]
[312377927,1705845477257,3129.43626556,0.00017,2]
[312377928,1705845480421,1811.41770485,0.00017,2]
[312377929,1705845480707,459.95089397,0.00017,2]
[312377930,1705845481698,15217.05988375,0.00017,2]
[312377931,1705845481896,3012.94504376,0.00017,2]
[312377932,1705845483537,154.73694719,0.000153,2]
[312377933,1705845487300,1545.07831099,0.00017,2]
[312377934,1705845488218,578.16940661,0.00017,2]
[312377936,1705845497256,3129.43626556,0.00017,2]
[312377937,1705845497745,15217.05988375,0.00017,2]
[312377938,1705845500412,1811.41770485,0.00017,2]
[312377939,1705845505520,154.73694719,0.000153,2]
[312377940,1705845515302,3129.43626556,0.00017,2]
[312377941,1705845517700,15217.05988375,0.00017,2]
[312377942,1705845520419,1811.41770485,0.00017,2]
[312377943,1705845527535,154.73694719,0.000153,2]
[312377944,1705845529918,663.010092,0.00016135,2]
[312377945,1705845533113,163.32257243,0.00016902,2]
[312377946,1705845533280,1418.25328276,0.00017,2]
[312377947,1705845535700,2665.70871283,0.00017,2]
[312377948,1705845538097,163.32257242,0.00016905,2]
[312377949,1705845538517,1811.41770485,0.00017,2]
[312377950,1705845543131,163.32257242,0.00016907,2]
[312377951,1705845548114,163.32257242,0.0001691,2]
[312377952,1705845551567,154.73694719,0.000153,2]
[312377953,1705845554415,1519.36571405,0.00017,2]
[312377954,1705845569286,2002.20651061,0.00017,2]
[312377955,1705845569574,154.73694719,0.000153,2]
[312377956,1705845591539,154.73694719,0.000153,2]
[312377957,1705845611534,154.73694719,0.000153,2]
[312377958,1705845616223,-6210.5825928,0.00017001,2]
[312377959,1705845616247,-9789.4174072,0.00017002,2]
[312377960,1705845635551,154.73694719,0.00015509,2]
[312377961,1705845637521,24900.0,0.00016153,2]
[312377962,1705845655553,154.73694719,0.00015512,2]
[312377964,1705845673557,154.73694719,0.00015511,2]
[312377965,1705845693556,154.73694719,0.00015511,2]
[312377966,1705845711549,154.73694719,0.000153,2]
[312377967,1705845721710,154.73694719,0.00017,2]
[312377968,1705845727549,154.73694719,0.000153,2]
[312377969,1705845743703,154.78330338,0.00017,2]
[312377970,1705845745554,154.73694719,0.000153,2]
[312377971,1705845745640,81194.50609145,0.00017,2]
[312377972,1705845773782,464.7195572,0.00016135,2]
[312377973,1705845794638,178.72553663,0.00017,2]
[312377974,1705845884610,154.73694719,0.00017,3]
[312377975,1705845909246,160.83305456,0.00016902,2]
[312377979,1705845961153,154.73694719,0.00017,3]
[312377981,1705845993686,43079.34405885,0.00017,2]
[312378001,1705846040142,-154.73694719,0.00016999,3]
[312378002,1705846040162,-7815.89416929,0.00017,2]
[312378003,1705846045073,-885.1381514,0.00017,2]
[312378005,1705846188344,747.63315578,0.00016995,5]
[312378046,1705846232381,-154.73694719,0.00016108,3]
[312378048,1705846232390,-329.46843563,0.00016109,2]
[312378050,1705846232399,-562.6249787,0.00016109,2]
[312378103,1705846234166,414.805247,0.00015114,2]
[312378122,1705846238409,-154.73694719,0.00016107,2]
[312378125,1705846238419,-154.73694719,0.00016107,2]
[312378126,1705846238428,-876.30197179,0.00016109,2]
[312378128,1705846238437,-154.73694719,0.0001611,2]
[312378130,1705846238447,-154.73694719,0.0001611,2]
[312378132,1705846238456,-1589.80949829,0.0001611,2]
[312378134,1705846238466,-478.57043616,0.0001611,2]
[312378135,1705846238478,-424.87324809,0.0001611,2]
[312378136,1705846238487,-3745.3390844,0.0001611,2]
[312378137,1705846238496,-154.73694719,0.0001611,2]
[312378138,1705846238505,-687.82278777,0.0001611,2]
[312378139,1705846238514,-191.37607433,0.0001611,2]
[312378140,1705846238523,-154.84827615,0.0001611,2]
[312378141,1705846238532,-211.49658438,0.0001611,2]
[312378142,1705846238542,-19697.53585665,0.0001611,2]
[312378143,1705846238551,-213.3962609,0.0001611,2]
[312378144,1705846238560,-154.73694719,0.00016111,2]
[312378145,1705846238569,-155.99163875,0.00016111,2]
[312378146,1705846238578,-154.73694719,0.00016111,2]
[312378147,1705846238588,-1266.53793061,0.00016111,2]
[312378148,1705846238597,-323.52155902,0.00016111,2]
[312378149,1705846238606,-154.73694719,0.00016111,2]
[312378150,1705846238615,-154.88935421,0.00016111,2]
[312378151,1705846238625,-154.73694719,0.00016111,2]
[312378152,1705846238634,-3129.43626556,0.00016112,2]
[312378153,1705846238643,-154.73694719,0.00016112,2]
[312378154,1705846238653,-1293.51070224,0.00016112,2]
[312378155,1705846238662,-679.97177576,0.00016112,2]
[312378156,1705846238671,-225.40245301,0.00016112,2]
[312378157,1705846238680,-154.73694719,0.00016112,2]
[312378158,1705846238689,-644.2750614,0.00016112,2]
[312378159,1705846238698,-154.73694719,0.00016112,2]
[312378160,1705846238707,-1602.84826341,0.00016112,2]
[312378161,1705846238716,-178.88598493,0.00016112,2]
[312378162,1705846238724,-15217.05988375,0.00016112,2]
[312378163,1705846238733,-2814.61840706,0.00016112,2]
[312378164,1705846238744,-1242.31465176,0.00016112,2]
[312378165,1705846238755,-18901.14352222,0.00016112,2]
[312378166,1705846238764,-595.02587032,0.00016112,2]
[312378167,1705846238774,-876.22858684,0.00016112,2]
[312378168,1705846238783,-20898.36993383,0.00016112,2]
[312378169,1705846238792,-154.73694719,0.00016112,2]
[312378170,1705846238802,-154.73694719,0.00016113,2]
[312378171,1705846238811,-154.73694719,0.00016113,2]
[312378172,1705846238821,-154.73694719,0.00016113,2]
[312378173,1705846238831,-2089.19601767,0.00016113,2]
[312378174,1705846238840,-15912.03300123,0.00016113,2]
[312378175,1705846238850,-81194.50609145,0.00016114,2]
[312378176,1705846238859,-21682.11011495,0.00016115,2]
[312378177,1705846238868,-24900.0,0.00016117,2]
[312378178,1705846238878,-272.51041395,0.000165,2]
[312378179,1705846238888,-186.2170274,0.00016995,2]
[312378180,1705846238897,-154.76784823,0.00016995,2]
[312378181,1705846238906,-282.62773167,0.00016995,2]
[312378182,1705846238915,-154.73694719,0.00016995,2]
[312378183,1705846238925,-154.73694719,0.00016995,2]
[312378184,1705846238937,-274.86515668,0.00016996,2]
[312378185,1705846238946,-155.34695243,0.00016996,2]
[312378186,1705846238955,-156.440844,0.00016997,2]
[312378187,1705846238964,-154.79876161,0.00016997,2]
[312378188,1705846238974,-154.73694719,0.00016997,2]
[312378189,1705846238983,-254.79304162,0.00016997,2]
[312378190,1705846238992,-883.78663901,0.00016999,2]
[312378191,1705846239001,-164.04448597,0.00017,2]
[312378192,1705846239011,-155.1899775,0.00017,2]
[312378193,1705846239021,-156.26570952,0.00017,2]
[312378194,1705846239030,-683.87536543,0.00017002,2]
[312378195,1705846239040,-155.11385417,0.0001701,2]
[312378196,1705846239050,-282.63143783,0.0001701,2]
[312378197,1705846239059,-561.53264515,0.00017019,2]
[312378198,1705846239068,-389.8795414,0.0001712,2]
[312378199,1705846239077,-963.96002511,0.00017129,2]
[312378200,1705846239086,-155.78260158,0.00017129,2]
[312378201,1705846239097,-265.33782694,0.00017129,2]
[312378202,1705846239107,-222.89407296,0.00017129,2]
[312378203,1705846239118,-261.36362914,0.00017129,2]
[312378204,1705846239128,-382.94248535,0.0001713,2]
[312378205,1705846239138,-278.72560781,0.0001713,2]
[312378206,1705846239147,-549.40930506,0.00017131,2]
[312378207,1705846239159,-2992.56990417,0.00017132,2]
[312378208,1705846239171,-157.46500461,0.0001723,2]
[312378209,1705846239181,-283.41466435,0.0001723,2]
[312378210,1705846239191,-212.13382434,0.0001723,2]
[312378211,1705846239200,-10758.61056117,0.00017231,2]
[312378212,1705846239210,-231.22087518,0.00017234,2]
[312378213,1705846239220,-1000.0,0.00017235,2]
[312378214,1705846239231,-874.18725797,0.00017236,2]
[312378215,1705846239241,-176.22463349,0.00017237,2]
[312378216,1705846239251,-200.0,0.000187,2]
[312378217,1705846239260,-10534.70287753,0.00018999,2]
[312378218,1705846239269,-1582.04283476,0.00019,2]
[312378219,1705846239278,-171.333859,0.00019178,2]
[312378220,1705846239287,-174.879149,0.00019178,2]
[312378221,1705846239298,-1114.30379801,0.000195,2]
[312378222,1705846239307,-762.19754377,0.000199,2]
[312378223,1705846239316,-8078.0372641,0.00019967,2]
[312378224,1705846239448,-2083.53906819,0.0002,2]